[Event "IV Estrellas 2022"]
[Site "La Palma"]
[Date "2022.08.07"]
[Round "3.8"]
[White "Kurajica, Bojan"]
[Black "Rodriguez Bittar, Karim Javier"]
[Result "1-0"]
[ECO "D43"]
[WhiteElo "2525"]
[BlackElo "1881"]
[Annotator "TA"]
[PlyCount "59"]
[EventDate "2022.08.06"]
[EventType "swiss"]
[EventCountry "ESP"]
[SourceTitle "playchess.com"]
[Source "ChessBase"]
[SourceQuality "1"]
[TimeControl "5400+30"]

{[%evp 12,59,9,8,16,13,24,18,16,17,67,47,69,68,76,80,146,178,243,225,233,222,331,326,344,319,356,331,332,316,301,305,471,202,189,188,175,113,468,458,450,454,29985,29986,29986,29987,29988,29989,29993,29994]} 1. Nf3 {[%emt 0:00:05]} d5 {[%emt 0:02:12]} 2. d4 {[%emt 0:00:57]} Nf6 {[%emt 0:01:11]} 3. c4 {[%emt 0:00:14]} c6 {[%emt 0:00:07]} 4. Qb3 {[%emt 0:00:26]} e6 {[%emt 0:03:33]} 5. Bg5 {[%emt 0:00:34]} Nbd7 {[%emt 0:01:16]} 6. Nc3 {[%emt 0:00:27]} Be7 {[%emt 0:00:19] 6...h6 injects fresh life into this line.} 7. e3 {[%emt 0:01:17]} h6 {[%emt 0:00:32] D43: Semi-Slav: 5 Bg5 h6.} 8. Bh4 {[%emt 0:00:37]} Ne4 {[%emt 0:03:22]} 9. Bxe7 {[%emt 0:00:40]} Qxe7 {[%emt 0:00:16] The position is equal.} 10. Bd3 {[%emt 0:00:08]} f5 {[%emt 0:04:43] [#]} ({Black should try} 10... dxc4 $11 11. Qxc4 (11. Bxc4 Nd6 $11) 11... Nd6) 11. h4 $146 {[%emt 0:01:39]} ({Predecessor:} 11. cxd5 exd5 12. O-O Qf7 13. Qa3 Qe7 14. Qxe7+ Kxe7 15. Nh4 Kf6 16. g3 g5 17. Ng2 {½-½ (43) Nickel,U (1650)-Wolski,G (1505) Mecklenburg VP 2012}) 11... b6 {[%emt 0:08:19]} 12. Ne2 {[%emt 0:04:01]} Bb7 {[%emt 0:02:38]} 13. Nf4 {[%emt 0:04:32]} Qd6 {[%emt 0:11:37]} (13... Qf7 $142) 14. c5 $16 {[%emt 0:09:13]} Nexc5 {[%emt 0:08:58]} (14... Qb8 {is a better defense.} 15. cxb6 (15. Nxe6 Kf7 $14) 15... axb6) 15. dxc5 $18 {[%emt 0:00:39]} Nxc5 {[%emt 0:00:07]} 16. Qc3 {[%emt 0:00:29]} Rg8 {[%emt 0:04:22]} (16... O-O $142 17. Ng6 Rfd8) 17. b4 {[%emt 0:13:19]} Nd7 {[%emt 0:00:42]} 18. Nd4 {[%emt 0:07:14]} Nf8 {[%emt 0:02:25]} 19. Rc1 {[%emt 0:05:30]} Rc8 {[%emt 0:01:18]} 20. Qb2 {[%emt 0:01:55]} g6 {[%emt 0:01:14]} 21. h5 {[%emt 0:08:49] Strongly threatening hxg6.} e5 {[%emt 0:09:42] [#]} (21... g5 {might work better.}) 22. Nxg6 {[%emt 0:00:15]} exd4 {[%emt 0:01:27]} 23. Bxf5 {[%emt 0:00:26]} Nxg6 {[%emt 0:10:43]} 24. Bxg6+ {[%emt 0:01:53]} (24. hxg6 $18 dxe3 25. fxe3 (25. Bxc8 Bxc8 26. g7 exf2+ 27. Kxf2 Bd7 $14)) 24... Rxg6 {[%emt 0:04:27][%mdl 8192] This costs Black the game.} (24... Kd8 $16 {is tougher.}) 25. hxg6 {[%emt 0:00:06]} Qxg6 {[%emt 0:00:03]} 26. Qxd4 {[%emt 0:04:42]} Qxg2 {[%emt 0:05:26]} (26... Kd7 $18 27. Qf4 Rh8) 27. Qe5+ {[%emt 0:00:37] White mates.} Kd7 {[%emt 0:06:06]} 28. Qf5+ {[%emt 0:08:44]} Kc7 {[%emt 0:01:24]} 29. Qf4+ {[%emt 0:00:21]} Kd7 {[%emt 0:01:23]} 30. Qf7+ {[%emt 0:00:33] Weighted Error Value: White=0.25 (precise) /Black=0.81} 1-0

[Event "IV Estrellas 2022"]
[Site "La Palma"]
[Date "2022.08.07"]
[Round "3.9"]
[White "Marrero Rodriguez, Jorge"]
[Black "Martinez Reyes, Pedro Ramon"]
[Result "0-1"]
[ECO "B01"]
[WhiteElo "1941"]
[BlackElo "2408"]
[Annotator "TA"]
[PlyCount "60"]
[EventDate "2022.08.06"]
[EventType "swiss"]
[EventCountry "ESP"]
[SourceTitle "playchess.com"]
[Source "ChessBase"]
[SourceQuality "1"]
[TimeControl "5400+30"]

{[%evp 9,60,47,61,53,45,41,37,25,49,24,30,33,39,44,42,39,43,22,38,26,47,0,0,-71,-18,-14,-19,-110,-113,-181,-185,-179,-28,-74,-61,-68,-46,-902,-193,-214,-204,-1164,-1153,-1152,-1118,-29982,-29983,-29981,-29982,-29993,-29994,-29998,-29999]} 1. e4 {[%emt 0:00:06]} d5 {[%emt 0:06:18]} 2. exd5 {[%emt 0:00:35]} Qxd5 {[%emt 0:00:09]} 3. Nc3 {[%emt 0:00:36]} Qd8 {[%emt 0:00:03]} 4. d4 {[%emt 0:03:00]} Nf6 {[%emt 0:00:04]} 5. Nf3 {[%emt 0:03:49]} g6 {[%emt 0:00:20]} 6. h3 {[%emt 0:02:00] B01: Scandinavian Defence.} Bg7 {[%emt 0:00:08]} 7. Be3 {[%emt 0:00:21]} a6 {[%emt 0:01:16]} 8. Bd3 {[%emt 0:02:56] White is slightly better.} Nc6 {[%emt 0:00:11] [#]} 9. Qe2 $146 {[%emt 0:01:23]} ({Predecessor:} 9. a3 O-O 10. O-O Re8 11. Ne5 Nxe5 12. dxe5 Nd5 13. Nxd5 Qxd5 14. f4 c5 15. Qf3 Qxf3 {½-½ (15) Ahlich,T (1863)-Luther,H (1908) Zirndorf 2005}) 9... O-O {[%emt 0:01:14]} 10. O-O {[%emt 0:00:28]} b6 {[%emt 0:14:28]} 11. a3 {[%emt 0:03:31]} Bb7 {[%emt 0:01:14]} 12. Rad1 {[%emt 0:00:44]} e6 {[%emt 0:00:04]} 13. Bg5 {[%emt 0:01:45]} h6 {[%emt 0:02:41]} ({But not} 13... Nxd4 14. Nxd4 Qxd4 15. Be4 $1 Qxc3 16. bxc3 $16) 14. Be3 {[%emt 0:04:27]} Ne7 {[%emt 0:04:38]} 15. Ne5 {[%emt 0:02:50]} (15. Bf4 $14) 15... Nf5 $11 {[%emt 0:00:27]} 16. g4 {[%emt 0:05:30]} (16. Rfe1 $11) 16... Nxd4 $17 {[%emt 0:09:02]} 17. Bxd4 {[%emt 0:01:34]} Qxd4 {[%emt 0:00:04]} 18. Bxg6 {[%emt 0:03:19]} Qf4 {[%emt 0:00:48]} 19. Nxf7 {[%emt 0:03:22]} (19. Rfe1 $17 {is a better defense.}) 19... Rxf7 $19 {[%emt 0:06:00]} 20. Qxe6 {[%emt 0:02:26] [#]} Raf8 {[%emt 0:01:28]} ({Better is} 20... Kh8 $1 $19 {[%cal Of4f3] Hoping for ...Qf3!} 21. Bxf7 (21. Qxf7 $2 {perishes.} Rf8 $19) 21... Qf3) 21. Bxf7+ {[%emt 0:01:57]} (21. Rd3 $11) 21... Rxf7 $17 {[%emt 0:00:34]} 22. Rd3 {[%emt 0:00:59] Against Qf3} Bf8 {[%emt 0:07:56] White must now prevent ...Bd6. Chess con chili. A strong pair of Bishops.} 23. Rfd1 $2 {[%emt 0:19:58][%mdl 8192] Loses the game.} (23. Ne2 $15 Qe4 24. Qxe4 Nxe4 25. Nd4) 23... Bd6 $2 {[%emt 0:04:55]} (23... Ne4 24. Rf1 Nxf2 25. Qxf7+ Kxf7) 24. Rxd6 $19 {[%emt 0:08:01]} cxd6 $40 {[%emt 0:00:17][%mdl 128] Black goes for the king.} 25. Qxd6 $2 {[%emt 0:00:16]} (25. Qe3 Qxe3 26. fxe3) 25... Qf3 {[%emt 0:01:02][%csl Gb7][%cal Rf3h1]} 26. Qh2 {[%emt 0:01:27] Against Qh1+} Re7 {[%emt 0:03:26][%cal Of3d1] ( -> ...Qxd1+!)} 27. Kf1 {[%emt 0:01:28]} Ne4 {[%emt 0:02:35] Black mates.} 28. Rd8+ {[%emt 0:05:34]} Kg7 {[%emt 0:00:56]} 29. Nxe4 {[%emt 0:00:43]} Qxe4 {[%emt 0:00:35][%csl Ge7][%cal Re4e1]} 30. f3 {[%emt 0:02:10]} Qe1+ {[%emt 0:00:11] Weighted Error Value: White=0.92/Black=0.45} 0-1

[Event "IV Estrellas 2022"]
[Site "La Palma"]
[Date "2022.08.07"]
[Round "3.10"]
[White "Pierrot, Facundo"]
[Black "Santos Ramos, Carlos"]
[Result "1-0"]
[ECO "C06"]
[WhiteElo "2371"]
[BlackElo "1855"]
[Annotator "RC"]
[PlyCount "73"]
[EventDate "2022.08.06"]
[EventType "swiss"]
[EventCountry "ESP"]
[SourceTitle "playchess.com"]
[Source "ChessBase"]
[SourceQuality "1"]
[TimeControl "5400+30"]

1. e4 {[%emt 0:00:04]} e6 {[%emt 0:00:06]} 2. d4 {[%emt 0:00:07]} d5 {[%emt 0:00:07]} 3. Nd2 {[%emt 0:00:10]} Nf6 {[%emt 0:00:45]} 4. e5 {[%emt 0:00:08]} Nfd7 {[%emt 0:00:05]} 5. Bd3 {[%emt 0:00:14]} c5 {[%emt 0:00:19]} 6. c3 {[%emt 0:00:08]} Nc6 {[%emt 0:00:56]} 7. Ne2 {[%emt 0:00:16]} Qb6 {[%emt 0:02:04]} 8. Nf3 {[%emt 0:00:15]} cxd4 {[%emt 0:00:26]} 9. cxd4 {[%emt 0:00:06]} Bb4+ {[%emt 0:00:22]} 10. Bd2 {[%emt 0:00:15]} O-O {[%emt 0:00:31]} 11. O-O {[%emt 0:00:22]} Bxd2 {[%emt 0:00:20]} 12. Qxd2 {[%emt 0:00:07]} f6 {[%emt 0:00:10]} 13. exf6 {[%emt 0:03:27]} Nxf6 {[%emt 0:00:25]} 14. Rad1 {[%emt 0:03:12]} Bd7 {[%emt 0:00:49]} 15. Nf4 {[%emt 0:03:52]} Nxd4 {[%emt 0:03:24]} 16. Nxd4 {[%emt 0:00:07]} e5 {[%emt 0:00:07]} 17. Nxd5 {[%emt 0:01:57]} Nxd5 {[%emt 0:00:14]} 18. Bc4 {[%emt 0:00:06]} Bc6 {[%emt 0:06:10]} 19. Nxc6 {[%emt 0:02:46]} bxc6 {[%emt 0:00:10]} 20. Bxd5+ {[%emt 0:00:05]} cxd5 {[%emt 0:00:09]} 21. Qxd5+ {[%emt 0:00:06]} Kh8 {[%emt 0:00:37]} 22. Qxe5 {[%emt 0:00:06]} Rae8 {[%emt 0:00:11]} 23. Qd4 {[%emt 0:01:00]} Qa6 {[%emt 0:03:21]} 24. a3 {[%emt 0:01:06]} h6 {[%emt 0:01:21]} 25. g3 {[%emt 0:00:20]} Qb7 {[%emt 0:01:38]} 26. Rfe1 {[%emt 0:00:21]} Rxe1+ {[%emt 0:06:05]} 27. Rxe1 {[%emt 0:00:07]} Qf7 {[%emt 0:00:29]} 28. b4 {[%emt 0:00:53]} Qa2 {[%emt 0:01:26]} 29. Qxa7 {[%emt 0:00:44]} Qd5 {[%emt 0:01:14]} 30. Qc5 {[%emt 0:00:28]} Qf3 {[%emt 0:00:08]} 31. a4 {[%emt 0:00:17]} Rd8 {[%emt 0:02:31]} 32. a5 {[%emt 0:00:36]} Qa8 {[%emt 0:12:03]} 33. Ra1 {[%emt 0:02:49]} Rc8 {[%emt 0:00:40]} 34. Qe5 {[%emt 0:00:57]} Re8 {[%emt 0:00:21]} 35. Qb2 {[%emt 0:00:11]} Qf3 {[%emt 0:01:14]} 36. a6 {[%emt 0:00:13]} Re2 {[%emt 0:01:33]} 37. Qc2 {[%emt 1:21:02]} 1-0

[Event "IV Estrellas 2022"]
[Site "La Palma"]
[Date "2022.08.07"]
[Round "3.11"]
[White "Carraminana Lopez, Luis Antonio"]
[Black "Pap, Misa"]
[Result "0-1"]
[ECO "B51"]
[WhiteElo "1910"]
[BlackElo "2375"]
[Annotator "RC"]
[PlyCount "54"]
[EventDate "2022.08.06"]
[EventType "swiss"]
[EventCountry "ESP"]
[SourceTitle "playchess.com"]
[Source "ChessBase"]
[SourceQuality "1"]
[TimeControl "5400+30"]

1. e4 {[%emt 0:00:10]} c5 {[%emt 0:04:30]} 2. Nf3 {[%emt 0:00:19]} Nc6 {[%emt 0:00:30]} 3. Bb5 {[%emt 0:00:30]} d6 {[%emt 0:01:17]} 4. Bxc6+ {[%emt 0:01:15]} bxc6 {[%emt 0:00:07]} 5. O-O {[%emt 0:00:37]} Bg4 {[%emt 0:02:19]} 6. e5 {[%emt 0:04:02]} dxe5 {[%emt 0:01:48]} 7. h3 {[%emt 0:00:35]} Bh5 {[%emt 0:01:14]} 8. g4 {[%emt 0:02:24]} Bg6 {[%emt 0:00:10]} 9. Nxe5 {[%emt 0:06:09]} f6 {[%emt 0:01:43]} 10. Nxg6 {[%emt 0:14:29]} hxg6 {[%emt 0:00:07]} 11. Qf3 {[%emt 0:00:05]} Qd7 {[%emt 0:00:06]} 12. c3 {[%emt 1:05:55]} Qd5 {[%emt 0:03:11]} 13. Qxd5 {[%emt 0:00:00]} cxd5 {[%emt 0:00:08]} 14. d4 {[%emt 0:00:00]} Rxh3 {[%emt 0:11:05]} 15. Bf4 {[%emt 0:00:00]} e6 {[%emt 0:07:48]} 16. Nd2 {[%emt 0:00:00]} Kd7 {[%emt 0:02:13]} 17. Kg2 {[%emt 0:00:00]} Rh4 {[%emt 0:00:34]} 18. f3 {[%emt 0:00:00]} Bd6 {[%emt 0:01:18]} 19. Bg3 {[%emt 0:00:00]} Rh8 {[%emt 0:00:32]} 20. Nb3 {[%emt 0:00:00]} cxd4 {[%emt 0:00:58]} 21. Nxd4 {[%emt 0:00:00]} Bxg3 {[%emt 0:00:49]} 22. Kxg3 {[%emt 0:00:00]} e5 {[%emt 0:00:06]} 23. Nc2 {[%emt 0:00:00]} Ne7 {[%emt 0:00:01]} 24. Rad1 {[%emt 0:00:00]} g5 {[%emt 0:00:23]} 25. Ne3 {[%emt 0:00:00]} Ke6 {[%emt 0:00:06]} 26. Rf2 {[%emt 0:00:00]} g6 {[%emt 0:00:05]} 27. Rh2 {[%emt 0:00:00]} f5 {[%emt 0:00:13]} 0-1

[Event "IV Estrellas 2022"]
[Site "La Palma"]
[Date "2022.08.07"]
[Round "3.12"]
[White "Perez Bolanos, Joel"]
[Black "Martin Rodriguez, Jose Carlos"]
[Result "1-0"]
[ECO "E71"]
[WhiteElo "2036"]
[BlackElo "1804"]
[Annotator "RC"]
[PlyCount "69"]
[EventDate "2022.08.06"]
[EventType "swiss"]
[EventCountry "ESP"]
[SourceTitle "playchess.com"]
[Source "ChessBase"]
[SourceQuality "1"]
[TimeControl "5400+30"]

1. d4 {[%emt 0:00:03]} d6 {[%emt 0:04:16]} 2. c4 {[%emt 0:00:31]} Nf6 {[%emt 0:00:07]} 3. Nc3 {[%emt 0:00:05]} g6 {[%emt 0:01:56]} 4. e4 {[%emt 0:00:26]} Bg7 {[%emt 0:02:21]} 5. h3 {[%emt 0:00:19]} Nc6 {[%emt 0:00:11]} 6. d5 {[%emt 0:00:21]} Nb8 {[%emt 0:00:12]} 7. Be3 {[%emt 0:00:06]} e5 {[%emt 0:00:08]} 8. Nge2 {[%emt 0:00:49]} O-O {[%emt 0:02:57]} 9. g4 {[%emt 0:00:30]} c6 {[%emt 0:00:17]} 10. Ng3 {[%emt 0:00:38]} cxd5 {[%emt 0:00:11]} 11. cxd5 {[%emt 0:00:32]} a6 {[%emt 0:00:43]} 12. a4 {[%emt 0:02:21]} Nbd7 {[%emt 0:00:38]} 13. Be2 {[%emt 0:01:06]} Qa5 {[%emt 0:00:20]} 14. Rb1 {[%emt 0:09:10]} Qb4 {[%emt 0:04:58]} 15. Bd2 {[%emt 0:08:57]} Nc5 {[%emt 0:03:51]} 16. Nb5 {[%emt 0:05:22]} Qb3 {[%emt 0:00:18]} 17. Qxb3 {[%emt 0:02:36]} Nxb3 {[%emt 0:00:03]} 18. Nxd6 {[%emt 0:00:20]} Rd8 {[%emt 0:05:38]} 19. Nc4 {[%emt 0:06:08]} Nd7 {[%emt 0:01:57]} 20. Be3 {[%emt 0:01:54]} Bf8 {[%emt 0:02:21]} 21. O-O {[%emt 0:05:10]} f6 {[%emt 0:02:22]} 22. Bd1 {[%emt 0:04:02]} Nd4 {[%emt 0:00:47]} 23. Bxd4 {[%emt 0:01:06]} exd4 {[%emt 0:00:04]} 24. Ne2 {[%emt 0:00:14]} b5 {[%emt 0:02:19]} 25. Na5 {[%emt 0:02:49]} Nc5 {[%emt 0:03:48]} 26. f3 {[%emt 0:02:38]} d3 {[%emt 0:01:47]} 27. Nc3 {[%emt 0:02:07]} Bd7 {[%emt 0:00:22]} 28. axb5 {[%emt 0:03:59]} axb5 {[%emt 0:00:29]} 29. Nc6 {[%emt 0:02:07]} Bxc6 {[%emt 0:01:43]} 30. dxc6 {[%emt 0:01:34]} Rdc8 {[%emt 0:01:13]} 31. Nxb5 {[%emt 0:03:36]} Rxc6 {[%emt 0:00:21]} 32. b4 {[%emt 0:02:54]} Nd7 {[%emt 0:00:38]} 33. Bb3+ {[%emt 0:00:13]} Kg7 {[%emt 0:00:11]} 34. Bd5 {[%emt 0:00:25]} Ne5 {[%emt 0:00:50]} 35. f4 {[%emt 0:32:52]} 1-0

[Event "IV Estrellas 2022"]
[Site "La Palma"]
[Date "2022.08.07"]
[Round "3.13"]
[White "Gil Jimenez, David"]
[Black "Diaz Perez, Michel Alejandro"]
[Result "1/2-1/2"]
[ECO "D36"]
[WhiteElo "1871"]
[BlackElo "2433"]
[Annotator "TA"]
[PlyCount "103"]
[EventDate "2022.08.06"]
[EventType "swiss"]
[EventCountry "ESP"]
[SourceTitle "playchess.com"]
[Source "ChessBase"]
[SourceQuality "1"]
[TimeControl "5400+30"]

{[%evp 24,103,41,48,59,19,38,30,44,31,33,25,27,23,52,55,53,6,3,-84,-93,-147,-147,-147,-147,-147,-147,-147,-147,-147,-143,-158,-154,-162,-162,-162,-162,-162,-136,-145,-140,-169,-169,-151,-151,-181,-133,-150,-150,-150,-58,-58,-54,-62,-58,-108,-112,-156,-158,-297,-116,-137,-38,-101,-55,-66,-64,-62,-62,-1005,-139,-140,-133,-120,-140,-135,-133,-130,-8,-265,-8,-8]} 1. d4 {[%emt 0:00:03]} d5 {[%emt 0:00:12]} 2. c4 {[%emt 0:00:09]} e6 {[%emt 0:00:06]} 3. Nc3 {[%emt 0:00:07]} Nf6 {[%emt 0:00:05]} 4. cxd5 {[%emt 0:00:19]} exd5 {[%emt 0:00:13]} 5. Bg5 {[%emt 0:00:20]} Be7 {[%emt 0:00:21]} 6. e3 {[%emt 0:01:22]} Nbd7 {[%emt 0:00:15][%cal Bb8d7,Bd7f8,Bf8e6][%mdl 32]} 7. Nf3 {[%emt 0:01:10]} c6 {[%emt 0:00:16]} 8. Bd3 {[%emt 0:02:34]} O-O {[%emt 0:00:13]} 9. Qc2 {[%emt 0:14:04]} Re8 {[%emt 0:00:30]} 10. O-O {[%emt 0:02:20]} Nf8 {[%emt 0:01:13]} 11. Rab1 {[%emt 0:07:35]} g6 {[%emt 0:01:13]} 12. b4 {[%emt 0:01:02]} Ne6 {[%emt 0:00:18]} 13. Bh4 {[%emt 0:01:25]} a6 {[%emt 0:01:09] D36: Queen's Gambit Declined: Exchange Variation: Main line (5 Bg5 c6 6 Qc2).} 14. Na4 {[%emt 0:06:59] [#]} Nh5 $146 {[%emt 0:27:53]} ({Predecessor:} 14... Ng7 15. Nc5 Ra7 16. Ne5 Bf5 17. a4 Bxd3 18. Nexd3 Nf5 19. Bxf6 Bxf6 20. b5 axb5 21. axb5 {1-0 (56) Sohal,T (2263)-Li,Y (2011) Kitchener 2015}) 15. Bxe7 {[%emt 0:00:31]} Qxe7 {[%emt 0:00:27] White has an edge.} 16. Nb6 {[%emt 0:03:14]} Rb8 {[%emt 0:01:02]} 17. Nxc8 {[%emt 0:01:55]} Rbxc8 {[%emt 0:00:16]} 18. a4 {[%emt 0:03:23]} Ng5 {[%emt 0:11:23]} 19. Nxg5 {[%emt 0:01:26]} Qxg5 {[%emt 0:00:18]} 20. Rbc1 {[%emt 0:07:12]} (20. b5 $14) 20... f5 $11 {[%emt 0:04:57]} 21. f4 {[%emt 0:06:56]} (21. Be2 $11 {keeps the balance.}) 21... Qe7 $17 {[%emt 0:01:36]} 22. Rfe1 {[%emt 0:01:17]} ({Better is} 22. Rce1) 22... Qxb4 {[%emt 0:02:17][%cal Oh5f4]} 23. Rb1 {[%emt 0:00:21]} Qe7 {[%emt 0:03:55]} 24. a5 {[%emt 0:01:19]} Nf6 {[%emt 0:12:34][%cal Bh5f6,Bf6e8,Be8d6,Bd6b5][%mdl 32]} 25. h3 {[%emt 0:02:18]} Rc7 {[%emt 0:07:17]} 26. Rb3 {[%emt 0:04:48]} Rec8 {[%emt 0:05:17]} 27. Qb2 {[%emt 0:01:26]} Ne8 {[%emt 0:02:19]} 28. Qa2 {[%emt 0:10:25]} Nd6 {[%emt 0:01:06]} 29. Rc3 {[%emt 0:02:09]} Rd8 {[%emt 0:04:47]} 30. Re2 {[%emt 0:05:08]} Nb5 {[%emt 0:02:16]} 31. Rc5 {[%emt 0:00:41]} Qd6 {[%emt 0:02:31]} 32. g3 {[%emt 0:02:11]} Re7 {[%emt 0:00:32]} 33. Kg2 {[%emt 0:03:41]} Kg7 {[%emt 0:00:30]} 34. Qb3 {[%emt 0:01:57]} Qc7 {[%emt 0:01:22]} (34... Rde8 $19 35. Qb4 Re6) 35. Qb4 {[%emt 0:03:24]} Rde8 {[%emt 0:00:42]} 36. Kf2 {[%emt 0:01:02]} b6 {[%emt 0:00:31]} (36... Nd6 $17 37. Rc1 Re6) 37. axb6 $15 {[%emt 0:00:48]} Qxb6 {[%emt 0:00:02]} 38. Bxb5 {[%emt 0:00:56]} axb5 {[%emt 0:00:46][%cal Ba6b5,Bb5b4][%mdl 32]} 39. Qc3 {[%emt 0:00:31]} (39. Rc3 $15) 39... Re6 $17 {[%emt 0:00:15]} 40. Rc2 {[%emt 0:01:00][%cal Rc5c6]} b4 {[%emt 0:00:54]} 41. Qb3 {[%emt 0:00:32]} (41. Qa1 $17) 41... Ra8 $2 {[%emt 0:03:34] [#]} (41... Rxe3 $19 42. Qxe3 Rxe3 43. Kxe3 b3) 42. Rb2 {[%emt 0:00:48]} Rb8 {[%emt 0:01:27]} ({Black should try} 42... Ra1 $17 {Strongly threatening ...Re8.} 43. Rb1 Rxb1 44. Qxb1 Re7) 43. Ra2 {[%emt 0:00:23]} (43. Qa4 $15) 43... Kf6 {[%emt 0:01:51]} (43... Re7 $17 44. Rc1 Rbe8) 44. Rca5 {[%emt 0:00:29]} Rbe8 {[%emt 0:00:28]} 45. Ra6 {[%emt 0:00:46]} Qb5 $36 {[%emt 0:00:50][%mdl 2048] Black fights for an advantage.} 46. Ra7 $2 {[%emt 0:00:30][%mdl 8192] [#]} (46. R2a5 $15 Qb8 47. Ra8) 46... Qc4 $2 {[%emt 0:00:50]} (46... Rxe3 $19 {and Black stays clearly on top.} 47. Qxe3 Rxe3 48. Kxe3 b3) 47. Rb2 {[%emt 0:00:24]} Rxe3 {[%emt 0:00:28]} 48. Qxc4 {[%emt 0:00:29]} dxc4 {[%emt 0:00:03]} 49. Rxb4 {[%emt 0:00:15]} Re2+ {[%emt 0:00:30]} 50. Kf1 {[%emt 0:00:10]} Rc2 {[%emt 0:00:44]} (50... Re1+ $17 51. Kf2 R8e2+ 52. Kf3 Re3+ 53. Kf2 R1e2+ 54. Kf1 Ke6 55. Rxc4 Kd5) 51. Ra6 $2 {[%emt 0:00:42][%mdl 8192]} (51. d5 $1 $11) 51... Re6 $2 {[%emt 0:00:43]} (51... Ke6 $19 {White must now prevent ...Kd5.} 52. Rb5 Kd7) 52. Rbb6 {[%emt 0:00:32] Weighted Error Value: White=0.44/Black=0.61} 1/2-1/2

[Event "IV Estrellas 2022"]
[Site "La Palma"]
[Date "2022.08.07"]
[Round "3.14"]
[White "Hernandez Garcia, Joaquin"]
[Black "Miranda Herrera, Miguel"]
[Result "0-1"]
[ECO "A96"]
[WhiteElo "1332"]
[BlackElo "1904"]
[Annotator "TA"]
[PlyCount "50"]
[EventDate "2022.08.06"]
[EventType "swiss"]
[EventCountry "ESP"]
[SourceTitle "playchess.com"]
[Source "ChessBase"]
[SourceQuality "1"]
[TimeControl "5400+30"]

{[%evp 16,50,32,35,29,27,48,37,65,65,90,87,93,84,91,87,84,93,103,79,83,72,77,0,97,-14,0,-12,0,0,46,48,53,0,0,-791,-783]} 1. d4 {[%emt 0:00:04]} e6 {[%emt 0:00:11]} 2. c4 {[%emt 0:00:08]} f5 {[%emt 0:00:09]} 3. g3 {[%emt 0:00:22]} Nf6 {[%emt 0:00:06]} 4. Bg2 {[%emt 0:00:08]} Be7 {[%emt 0:00:04]} 5. Nf3 {[%emt 0:00:10]} O-O {[%emt 0:00:07]} 6. Nc3 {[%emt 0:00:15]} d6 {[%emt 0:00:06]} 7. Qc2 {[%emt 0:00:51]} a5 {[%emt 0:03:46]} 8. O-O {[%emt 0:00:48]} Nc6 {[%emt 0:00:20]} 9. e4 {[%emt 0:04:52]} fxe4 {[%emt 0:06:15] A96: Classical Dutch: Fluid Systems: Early deviations.} 10. Nxe4 {[%emt 0:01:04]} Nxe4 {[%emt 0:00:06]} 11. Qxe4 {[%emt 0:00:26]} d5 {[%emt 0:00:02] White is slightly better.} 12. Qe2 {[%emt 0:03:55]} Bf6 {[%emt 0:18:25]} 13. Rd1 {[%emt 0:03:50] [#]} dxc4 $146 {[%emt 0:00:15]} ({Predecessor:} 13... Kh8 14. Bf4 Ne7 15. Ne5 b6 16. Rac1 Bb7 17. c5 Ba6 18. Qg4 Nf5 19. cxb6 cxb6 {½-½ (47) Van Wely,L (2610)-Reinderman,D (2575) Amstelveen 2019}) 14. Bf4 {[%emt 0:03:39]} Nb4 {[%emt 0:05:52]} 15. Qxc4 {[%emt 0:03:48]} Nd5 {[%emt 0:00:05]} 16. Be5 {[%emt 0:01:49]} Ra6 {[%emt 0:08:37][%cal Ba8a6,Ba6c6,Bc6b6,Bb6b2][%mdl 32]} 17. Rac1 {[%emt 0:04:11]} Rc6 {[%emt 0:02:11]} 18. Qb3 {[%emt 0:00:13]} Rb6 {[%emt 0:06:45]} 19. Qa3 {[%emt 0:03:33]} ({Better is} 19. Bxf6 $16 gxf6 20. Qa3) 19... Bd7 {[%emt 0:08:51] [#]} (19... Be7 $1 $11 {remains equal.} 20. Qxa5 Rxb2) 20. Nd2 {[%emt 0:08:17]} ({Don't play} 20. Qxa5 $6 Rxb2 21. Qa3 (21. Bxc7 Nxc7 22. Qxc7 Qxc7 $11) 21... Rb6 $11) ({White should play} 20. Bxf6 $1 $16 gxf6 21. Nd2) 20... Be7 $11 {[%emt 0:06:58]} 21. Qd3 {[%emt 0:00:23] Strongly threatening Bxd5.} ({Not} 21. Qxa5 $2 Ra6 22. Qxa6 bxa6 $19) 21... Rxb2 {[%emt 0:00:31]} 22. Be4 {[%emt 0:03:37]} Bf6 {[%emt 0:05:29]} (22... h6 $11 23. Bxd5 exd5) 23. Bxh7+ $14 {[%emt 0:05:19]} Kh8 {[%emt 0:00:03] [#] ...Bb5 is the strong threat.} 24. Bg6 {[%emt 0:01:34]} (24. Be4 $1 $14 Bxe5 25. dxe5) 24... Bxe5 $1 $11 {[%emt 0:02:23]} (24... Rxa2 $2 25. Qf3 Kg8 26. Qh5 $18) 25. Qe2 $2 {[%emt 0:02:00][%mdl 8192]} (25. dxe5 $11 Qg5 26. Be4) 25... Qg5 {[%emt 0:00:53] Weighted Error Value: White=0.51/Black=0.19 (very precise)} 0-1